[Event "FIDE WCCC U10 2018"]
[Site "Santiago de Compostela"]
[Date "2018.11.11"]
[Round "7"]
[White "Deuer, Marius"]
[Black "Atanasov, Anthony"]
[Result "0-1"]
[ECO "A05"]
[WhiteElo "1695"]
[BlackElo "1916"]
[Annotator "NA RC"]
[PlyCount "182"]
[EventDate "2018.11.04"]
[EventType "swiss"]
[EventCountry "ESP"]
[SourceTitle "playchess.com"]
[Source "ChessBase"]
[SourceQuality "1"]
[TimeControl "40/5400+30:1800+30"]

1. Nf3 {[%emt 0:00:00]} Nf6 {[%emt 0:00:00]} 2. c4 {[%emt 0:00:00]} g6 {[%emt 0:00:00]} 3. Nc3 {[%emt 0:00:00]} d5 {[%emt 0:00:00]} 4. cxd5 {[%emt 0:00:00]} Nxd5 {[%emt 0:00:00]} 5. e4 {[%emt 0:00:03]} Nxc3 {[%emt 0:00:00]} 6. dxc3 {[%emt 0:00:04] LiveBook: 600 Games} Qxd1+ {[%emt 0:00:04]} 7. Kxd1 {[%emt 0:00:06]} f6 {[%emt 0:01:11]} 8. Be3 {[%emt 0:00:05]} e5 {[%emt 0:00:22]} 9. Nd2 {[%emt 0:01:11]} Nd7 {[%emt 0:02:18] A16: English Opening: 1...Nf6 with ...d5} 10. Nb3 {[%emt 0:00:05]} b6 {[%emt 0:10:37]} (10... h5 11. f3 Nb6 12. Kc2 Bd7 13. Nc5 Bc6 14. b3 Bh6 15. Bxh6 Rxh6 16. a4 Ke7 17. Bb5 {½-½ (38) So,W (2778)-Aronian,L (2764) Leuven 2018}) 11. Kc2 {[%emt 0:05:48]} Bb7 {[%emt 0:00:52]} 12. f3 {[%emt 0:04:09]} O-O-O $146 {[%emt 0:01:26]} ({Predecessor:} 12... a5 13. a4 Bc6 14. Bc4 Bd6 15. Rhd1 Ke7 {1-0 (42) Stigar,P (2299)-Demir,G (2239) Budapest 2008}) 13. Bc4 {[%emt 0:02:45]} Bd6 {[%emt 0:21:17]} 14. g4 {[%emt 0:23:21]} f5 {[%emt 0:08:53]} 15. Nd2 {[%emt 0:02:48]} fxg4 {[%emt 0:11:48]} 16. fxg4 $11 {[%emt 0:00:04]} Nc5 {[%emt 0:38:11]} 17. Bd5 {[%emt 0:00:30]} Ba6 {[%emt 0:00:30]} 18. b4 {[%emt 0:00:30]} Nd7 {[%emt 0:00:30]} 19. g5 {[%emt 0:00:30]} Rhf8 {[%emt 0:00:30]} 20. Nc4 {[%emt 0:00:30]} Be7 {[%emt 0:00:30]} 21. Rhf1 {[%emt 0:00:30]} Bb7 {[%emt 0:00:30]} 22. Rxf8 {[%emt 0:00:30]} Rxf8 {[%emt 0:00:30]} 23. Rd1 {[%emt 0:00:30]} Bxd5 {[%emt 0:00:30]} 24. Rxd5 {[%emt 0:00:30]} c6 {[%emt 0:00:30]} 25. Rd1 {[%emt 0:00:30]} Kc7 {[%emt 0:00:30]} 26. a4 {[%emt 0:00:30]} a6 {[%emt 0:00:30]} 27. a5 {[%emt 0:00:30]} bxa5 {[%emt 0:00:30]} 28. bxa5 {[%emt 0:00:30]} Rb8 29. Nb6 Rd8 30. Nxd7 {[%emt 0:56:55]} Rxd7 {[%emt 0:01:30]} 31. Rf1 {[%emt 0:00:45]} Kc8 {[%emt 0:00:39]} 32. h4 {[%emt 0:00:59]} Bd8 {[%emt 0:00:20]} 33. Ra1 {[%emt 0:00:43]} Rb7 {[%emt 0:00:48]} 34. c4 {[%emt 0:00:15]} Rf7 {[%emt 0:00:25]} 35. Kd2 {[%emt 0:00:25]} Rf3 {[%emt 0:00:23]} 36. Ke2 {[%emt 0:00:09]} Rh3 {[%emt 0:00:12]} 37. Bf2 {[%emt 0:00:55]} Rc3 {[%emt 0:01:01]} 38. Ra4 {[%emt 0:00:04]} Be7 {[%emt 0:00:35]} 39. Be1 {[%emt 0:00:42]} Rb3 {[%emt 0:00:29]} 40. c5 {[%emt 0:00:00]} Rb5 {[%emt 0:00:00]} 41. Rc4 {[%emt 0:04:01]} Rxc5 {[%emt 0:02:22]} 42. Rxc5 {[%emt 0:01:36]} Bxc5 {[%emt 0:00:05]} 43. Bc3 {[%emt 0:00:04]} Bd4 {[%emt 0:00:46]} 44. Be1 {[%emt 0:00:27]} Kd7 {[%emt 0:12:14]} 45. Kd3 {[%emt 0:01:42]} Ke6 {[%emt 0:05:10]} 46. Bg3 {[%emt 0:03:25]} Kd6 {[%emt 0:01:19]} 47. Kc4 {[%emt 0:00:16]} Be3 {[%emt 0:01:03]} 48. Be1 {[%emt 0:00:52]} Bf4 {[%emt 0:03:08]} 49. Bb4+ {[%emt 0:03:41]} Kc7 {[%emt 0:02:56]} 50. Be1 {[%emt 0:00:47]} Be3 {[%emt 0:01:50]} 51. Kd3 {[%emt 0:00:23]} Bf4 {[%emt 0:00:52]} 52. Kc4 {[%emt 0:00:35]} Kd7 {[%emt 0:00:47]} 53. Kc5 {[%emt 0:02:58]} Be3+ {[%emt 0:00:21]} 54. Kc4 {[%emt 0:00:05]} Kd6 {[%emt 0:00:24]} 55. Bb4+ {[%emt 0:01:23]} c5 {[%emt 0:00:20]} 56. Be1 {[%emt 0:00:04]} Bf4 {[%emt 0:01:09]} 57. Bf2 {[%emt 0:02:50]} Kc6 {[%emt 0:00:50]} 58. Be1 {[%emt 0:02:54]} Be3 {[%emt 0:00:46]} 59. Kd3 {[%emt 0:01:05]} Bc1 {[%emt 0:00:33]} 60. Kc4 {[%emt 0:05:53]} Bf4 {[%emt 0:00:12]} 61. Bf2 {[%emt 0:00:20]} Bd2 {[%emt 0:00:24]} 62. Bxc5 {[%emt 0:00:06]} Bxa5 {[%emt 0:00:07]} 63. Bf2 {[%emt 0:00:14]} Bd2 {[%emt 0:01:39]} 64. Bg3 {[%emt 0:00:36]} Kd6 {[%emt 0:00:50]} 65. Bf2 {[%emt 0:00:46]} Ba5 {[%emt 0:00:30]} 66. Bg3 {[%emt 0:01:09]} Bc7 {[%emt 0:00:24]} 67. Bf2 {[%emt 0:00:38]} Kc6 {[%emt 0:00:11]} 68. Kb4 {[%emt 0:00:10]} Bb6 {[%emt 0:01:41]} 69. Be1 {[%emt 0:01:01]} a5+ {[%emt 0:02:13]} 70. Ka4 {[%emt 0:00:07]} Bc7 {[%emt 0:00:31]} 71. Bf2 {[%emt 0:00:13]} Bd8 {[%emt 0:00:25]} 72. Be3 {[%emt 0:00:30]} Bb6 {[%emt 0:00:33]} 73. Bd2 {[%emt 0:00:24]} Bf2 {[%emt 0:00:31]} 74. Kxa5 {[%emt 0:03:49]} Bxh4 {[%emt 0:00:32]} 75. Kb4 {[%emt 0:00:06]} Bg3 {[%emt 0:00:15]} 76. Kc4 {[%emt 0:01:42]} Bf4 {[%emt 0:00:40]} 77. Bc3 {[%emt 0:02:35]} Kd6 {[%emt 0:00:27]} 78. Bb4+ {[%emt 0:00:05]} Ke6 {[%emt 0:00:09]} 79. Kd3 {[%emt 0:00:08]} Bxg5 {[%emt 0:00:07]} 80. Ke2 {[%emt 0:00:05]} h5 {[%emt 0:00:15]} 81. Kf3 {[%emt 0:00:03]} Bf4 {[%emt 0:00:15]} 82. Kg2 {[%emt 0:00:21]} g5 {[%emt 0:00:07]} 83. Kh3 {[%emt 0:00:04]} Kd7 {[%emt 0:00:12]} 84. Kg2 {[%emt 0:00:49]} Kc6 {[%emt 0:00:11]} 85. Kf3 {[%emt 0:00:48]} g4+ {[%emt 0:00:16]} 86. Ke2 {[%emt 0:00:37]} h4 {[%emt 0:00:07]} 87. Be7 {[%emt 0:00:13]} h3 {[%emt 0:00:09]} 88. Kf2 {[%emt 0:00:02]} g3+ {[%emt 0:00:24]} 89. Kf3 {[%emt 0:01:31]} g2 {[%emt 0:00:10]} 90. Bc5 {[%emt 0:00:48]} Kxc5 {[%emt 0:00:10]} 91. Kf2 {[%emt 0:00:10]} Be3+ {[%emt 0:00:16]} 0-1

[Event "FIDE WCCC U10 2018"]
[Site "Santiago de Compostela"]
[Date "2018.11.11"]
[Round "7"]
[White "Pashikyan, Rudolf"]
[Black "Zhong, Kevin"]
[Result "1/2-1/2"]
[ECO "B27"]
[WhiteElo "1672"]
[BlackElo "2038"]
[Annotator "NA RC"]
[PlyCount "135"]
[EventDate "2018.11.04"]
[EventType "swiss"]
[EventCountry "ESP"]
[SourceTitle "playchess.com"]
[Source "ChessBase"]
[SourceQuality "1"]
[TimeControl "40/5400+30:1800+30"]

{[%evp 15,135,0,3,32767,32767,0,0,0,0,0,-10,-9,32767,32767,-11,-12,-3,-20,32767,-20,32767,-59,32767,32767,32767,32767,-67,32767,32767,32767,32767,32767,-62,32767,-49,-67,-41,-100,-14,-26,-36,-34,32767,32767,-27,-63,-10,32767,-12,32767,32767,32767,32767,32767,-98,32767,32767,32767,-91,32767,-98,-98,-89,-114,-91,-87,-89,-98,-87,-90,-106,-85,-72,-72,-85,32767,32767,32767,32767,-75,-90,32767,32767,32767,32767,32767,-25,32767,32767,-30,32767,-30,-25,-89,32767,-25,-56,0,32767,32767,32767,-19,-156,-8,0,32767,-29971,-29969,0,0,0,0,0,0,0,0,0,0,-6,-6,0,0]} 1. e4 {[%emt 0:00:00]} c5 {[%emt 0:00:00]} 2. Nf3 {[%emt 0:00:01]} g6 {[%emt 0:00:00]} 3. c3 {[%emt 0:00:18]} d5 {[%emt 0:00:00]} 4. exd5 {[%emt 0:01:00]} Qxd5 {[%emt 0:00:02]} 5. d4 {[%emt 0:00:18]} Bg7 {[%emt 0:00:06]} 6. dxc5 {[%emt 0:01:58]} Qxc5 {[%emt 0:01:11]} 7. Be3 {[%emt 0:00:39]} Qc7 {[%emt 0:01:20]} 8. Be2 {[%emt 0:05:08] B06: Modern Defence} (8. Na3 a6 9. Qa4+ Bd7 10. Qf4 Qxf4 11. Bxf4 Bc6 12. Ne5 Nf6 13. Nac4 Nd5 14. Bg3 O-O 15. Rd1 e6 16. Nxc6 Nxc6 {0-1 (51) Kazhgaleyev,M (2570)-Vakhidov,J (2518) Ashkhabad 2017}) 8... Nf6 {[%emt 0:00:28] LiveBook: 11 Games} 9. h3 {[%emt 0:01:12]} Nc6 {[%emt 0:00:38]} 10. Na3 {[%emt 0:00:50]} O-O {[%emt 0:00:49]} 11. Nb5 {[%emt 0:00:09]} Qb8 {[%emt 0:01:24]} 12. O-O {[%emt 0:01:43]} a6 {[%emt 0:04:46]} 13. Nbd4 {[%emt 0:04:42]} Qc7 $146 {[%emt 0:08:48]} ({Predecessor:} 13... Nd5 14. Nxc6 bxc6 15. Bc1 Nf4 {½-½ (73) Davletbayeva,M (2227)-Kurbonboeva,S (2242) Dushanbe 2015}) 14. Qc1 {[%emt 0:02:12]} Nxd4 {[%emt 0:03:28]} 15. Nxd4 {[%emt 0:00:14]} Nd5 {[%emt 0:02:02]} 16. Bh6 {[%emt 0:01:18]} e5 {[%emt 0:01:48]} 17. Bxg7 {[%emt 0:01:03]} Kxg7 {[%emt 0:00:10]} 18. Nb3 {[%emt 0:02:11]} Be6 {[%emt 0:01:10]} 19. Rd1 {[%emt 0:02:03]} Nf4 {[%emt 0:02:45]} 20. Bf3 {[%emt 0:00:36] [#]} e4 $1 {[%emt 0:04:35]} 21. Rd4 {[%emt 0:01:35]} Bxb3 {[%emt 0:10:53]} 22. axb3 {[%emt 0:00:11]} Nxh3+ {[%emt 0:00:11]} 23. gxh3 {[%emt 0:00:13]} exf3 {[%emt 0:00:06]} 24. Qe3 {[%emt 0:03:47]} Qc6 {[%emt 0:03:00]} 25. Rad1 {[%emt 0:03:49]} Qf6 {[%emt 0:18:55]} 26. R1d3 {[%emt 0:06:52]} Rae8 {[%emt 0:04:40]} (26... Rfe8 $17 27. Qxf3 Qxf3 28. Rxf3 Rad8) 27. Qxf3 {[%emt 0:02:12]} Qg5+ {[%emt 0:04:07]} 28. Kh2 {[%emt 0:01:39]} Re1 {[%emt 0:00:30]} 29. Rg4 {[%emt 0:03:17]} Qe5+ {[%emt 0:00:47]} 30. Qg3 {[%emt 0:01:57]} Qxg3+ {[%emt 0:00:51]} 31. Kxg3 {[%emt 0:01:04]} Re2 {[%emt 0:00:15]} 32. Rd7 {[%emt 0:00:24]} b5 {[%emt 0:00:48]} 33. c4 {[%emt 0:02:37]} Rxb2 {[%emt 0:00:31]} 34. cxb5 {[%emt 0:00:07]} Rxb3+ {[%emt 0:00:05]} 35. f3 {[%emt 0:00:47]} axb5 {[%emt 0:00:33]} 36. Rb7 {[%emt 0:00:13]} h6 {[%emt 0:04:37]} 37. Rd4 {[%emt 0:00:24]} Rb1 {[%emt 0:00:39]} 38. Rd5 {[%emt 0:00:58]} b4 {[%emt 0:00:04]} 39. Rdb5 {[%emt 0:00:05]} Rd8 {[%emt 0:00:17]} 40. Rxb4 {[%emt 0:00:00]} Rxb4 {[%emt 0:00:00]} 41. Rxb4 {[%emt 0:00:20]} Rd1 {[%emt 0:01:07]} 42. Rb6 {[%emt 0:00:15]} Re1 {[%emt 0:02:47]} 43. Rc6 {[%emt 0:05:32]} Re6 {[%emt 0:00:44]} 44. Rc5 {[%emt 0:00:12]} Kf6 {[%emt 0:00:05]} 45. Kf4 {[%emt 0:00:18]} Ra6 {[%emt 0:01:04]} 46. Rc4 {[%emt 0:04:10]} g5+ {[%emt 0:02:19]} 47. Kg4 {[%emt 0:02:33]} Kg6 {[%emt 0:00:07]} 48. h4 {[%emt 0:01:38]} f5+ {[%emt 0:00:30]} 49. Kg3 {[%emt 0:00:24]} Ra3 {[%emt 0:01:55]} 50. hxg5 {[%emt 0:04:00]} hxg5 {[%emt 0:00:52]} ({Resist} 50... Kxg5 51. Rc5 $17) 51. Rc6+ {[%emt 0:00:14]} Kh5 {[%emt 0:00:35]} 52. Rf6 {[%emt 0:00:06]} f4+ {[%emt 0:00:29]} 53. Kg2 $1 {[%emt 0:00:06]} Ra2+ {[%emt 0:00:05]} 54. Kf1 {[%emt 0:02:02]} (54. Kh3 $1 $11) 54... Kh4 {[%emt 0:02:17]} 55. Rg6 {[%emt 0:00:39]} Kg3 {[%emt 0:00:18]} 56. Rxg5+ {[%emt 0:00:11]} Kxf3 {[%emt 0:00:06]} 57. Kg1 {[%emt 0:00:08]} Ra3 {[%emt 0:01:03]} 58. Rg8 {[%emt 0:01:01]} Ra1+ {[%emt 0:00:34]} 59. Kh2 {[%emt 0:00:06]} Kf2 {[%emt 0:00:11]} 60. Rf8 {[%emt 0:01:33] [#]} f3 $1 {[%emt 0:00:25]} 61. Rb8 {[%emt 0:01:18]} Ra2 $2 {[%emt 0:04:35]} (61... Kf1 {mates} 62. Kg3 f2 63. Kf3 Ra3+ 64. Ke4 Kg2 65. Rf8 f1=Q 66. Rxf1 Ra4+ 67. Kf5 Ra5+ 68. Kg6 Kxf1 69. Kf6 Kg2 70. Ke6 Kf3 71. Kf6 Rd5 72. Ke6 Ke4 73. Kf6 Rd6+ 74. Ke7 Ke5 75. Kf7 Kf5 76. Ke7 Rd5 77. Kf7 Rd7+ 78. Ke8 Ke6 79. Kf8 Kf6 80. Kg8 Rd8+ 81. Kh7 Ra8 82. Kh6 Rh8#) 62. Rb1 {[%emt 0:04:20]} Ke3+ {[%emt 0:04:16]} 63. Kg3 {[%emt 0:00:49]} Rg2+ {[%emt 0:01:47]} (63... Ke2 $5) 64. Kh3 $1 {[%emt 0:02:14]} Rd2 {[%emt 0:00:55]} (64... Rg6 $5) 65. Kg3 {[%emt 0:00:11]} Ke2 {[%emt 0:00:20]} 66. Ra1 {[%emt 0:03:13]} Rd3 {[%emt 0:05:38]} (66... Rb2 $5) 67. Ra2+ {[%emt 0:00:58]} Ke3 {[%emt 0:00:03]} 68. Rb2 $11 {[%emt 0:00:52]} 1/2-1/2

[Event "FIDE WCCC U10 2018"]
[Site "Santiago de Compostela"]
[Date "2018.11.11"]
[Round "7"]
[White "Cohen, Elad"]
[Black "Kadam Om Manish"]
[Result "0-1"]
[ECO "B91"]
[WhiteElo "1649"]
[BlackElo "2025"]
[Annotator "NA RC"]
[PlyCount "82"]
[EventDate "2018.11.04"]
[EventType "swiss"]
[EventCountry "ESP"]
[SourceTitle "playchess.com"]
[Source "ChessBase"]
[SourceQuality "1"]
[TimeControl "40/5400+30:1800+30"]

{[%evp 8,74,24,31,32767,32767,29,32767,32767,32767,32767,20,33,32767,32767,22,32767,32767,12,-29,28,-44,91,85,111,116,180,32767,140,32767,32767,213,32767,-43,-40,-21,-36,-38,-15,-32,-26,-144,-109,32767,-139,32767,32767,32767,32767,32767,32767,32767,32767,32767,-8,-8,-4,-1,0,32767,32767,-316,-334,-332,32767,-706,-776,-1213,-1745]} 1. e4 {[%emt 0:00:00]} c5 {[%emt 0:00:00]} 2. Nf3 {[%emt 0:00:00]} d6 {[%emt 0:00:00]} 3. d4 {[%emt 0:00:00]} cxd4 {[%emt 0:00:00]} 4. Nxd4 {[%emt 0:00:00]} Nf6 {[%emt 0:00:00]} 5. Nc3 {[%emt 0:00:11]} a6 {[%emt 0:00:04]} 6. g3 {[%emt 0:00:13]} e6 {[%emt 0:05:06]} 7. Bg2 {[%emt 0:00:39]} Be7 {[%emt 0:00:06]} 8. O-O {[%emt 0:00:34]} O-O {[%emt 0:00:09]} 9. f4 {[%emt 0:00:49]} Qc7 {[%emt 0:01:45]} 10. g4 {[%emt 0:00:51]} Nc6 {[%emt 0:03:30]} 11. Nxc6 {[%emt 0:02:40]} bxc6 {[%emt 0:05:14]} 12. g5 {[%emt 0:00:43]} Nd7 {[%emt 0:01:51] LiveBook: 19 Games} 13. f5 {[%emt 0:06:56]} d5 {[%emt 0:27:49] B80: Sizilianisch (Scheveninger System)} (13... Re8 14. f6 Bf8 15. fxg7 Bxg7 16. Ne2 a5 17. Ng3 Ba6 18. Rf4 Be5 19. Nh5 Bxf4 20. Bxf4 e5 21. Be3 {1-0 (32) Brkic,A (2581)-Palac,M (2579) Plitvicka Jezera 2013}) 14. Qh5 $146 {[%emt 0:21:36]} ({White should play Vorgänger:} 14. fxe6 $11 fxe6 15. Rxf8+ Nxf8 16. exd5 Qa7+ 17. Kh1 cxd5 18. Nxd5 Rb8 19. Nxe7+ Qxe7 20. b3 Bb7 21. Be3 Bxg2+ 22. Kxg2 {1-0 (50) Strohhaeker,R (2226)-Mijatovic,V (2181) Willingen 2005}) 14... Ne5 {[%emt 0:15:46] [#]} (14... g6 $11 {bleibt in der Remisbreite.} 15. Qh6 gxf5 16. exf5 exf5) 15. f6 $1 {[%emt 0:16:18]} Bc5+ {[%emt 0:01:24]} 16. Kh1 {[%emt 0:00:16]} Ng6 {[%emt 0:02:32]} (16... Rd8 $16) 17. Bd2 {[%emt 0:14:23]} Bd4 {[%emt 0:08:56]} 18. Rad1 {[%emt 0:03:51]} Bb7 {[%emt 0:02:55] [#]} 19. Be1 $1 {[%emt 0:01:51]} Be5 {[%emt 0:00:12] [#]} 20. Bg3 $2 {[%emt 0:05:02]} (20. exd5 cxd5 21. fxg7 Bxg7 $11) ({White must play} 20. Rd3 $1 $18 {[%cal Rd3h3]} Rfd8 21. Rh3) 20... Bxg3 {[%emt 0:02:06]} 21. hxg3 {[%emt 0:00:02]} Qxg3 {[%emt 0:00:48]} 22. Rd3 {[%emt 0:00:44]} Qh4+ {[%emt 0:01:07]} 23. Qxh4 {[%emt 0:00:06]} Nxh4 {[%emt 0:00:07]} 24. e5 {[%emt 0:00:38]} ({But not} 24. exd5 cxd5 25. Ne2 Rab8 $17) (24. Na4 $15) 24... c5 {[%emt 0:02:30]} 25. Ne2 {[%emt 0:02:35]} Rab8 {[%emt 0:01:21]} 26. Ng3 {[%emt 0:02:36]} g6 {[%emt 0:11:19]} 27. Rf4 {[%emt 0:02:54]} Nxg2 {[%emt 0:00:01]} 28. Kxg2 {[%emt 0:00:02]} Ba8 {[%emt 0:01:22]} 29. Rb3 {[%emt 0:01:25]} Rb5 {[%emt 0:02:00]} 30. Ra4 {[%emt 0:01:20]} d4+ {[%emt 0:02:31]} 31. Kf2 {[%emt 0:01:18]} Bd5 {[%emt 0:02:02]} 32. Rxb5 {[%emt 0:00:41]} axb5 {[%emt 0:00:01]} 33. Ra5 {[%emt 0:00:30]} Rb8 {[%emt 0:00:01]} 34. a4 $2 {[%emt 0:04:58]} (34. Ne2 $11 {and White is okay.}) 34... bxa4 {[%emt 0:00:19]} 35. Rxc5 {[%emt 0:00:02]} h6 {[%emt 0:00:44]} 36. gxh6 $2 {[%emt 0:00:48]} (36. Ne2 Rxb2 37. Rc8+ Kh7 38. Rf8) 36... Rxb2 {[%emt 0:01:30]} 37. Ra5 {[%emt 0:10:34]} Rxc2+ $19 {[%emt 0:00:06]} 38. Ke1 {[%emt 0:00:04]} d3 {[%emt 0:00:55]} 39. Rxa4 {[%emt 0:00:34]} d2+ {[%emt 0:00:04]} 40. Kd1 {[%emt 0:00:00]} Bb3 {[%emt 0:00:00]} 41. Ra8+ {[%emt 0:03:53]} Rc8+ {[%emt 0:00:06]} 0-1

[Event "FIDE WCCC U10 2018"]
[Site "Santiago de Compostela"]
[Date "2018.11.11"]
[Round "7"]
[White "Nitsche, Nikolai"]
[Black "Chandra, Anand Rishi"]
[Result "1/2-1/2"]
[ECO "B53"]
[WhiteElo "1645"]
[BlackElo "1953"]
[Annotator "NA RC"]
[PlyCount "102"]
[EventDate "2018.11.04"]
[EventType "swiss"]
[EventCountry "ESP"]
[SourceTitle "playchess.com"]
[Source "ChessBase"]
[SourceQuality "1"]
[TimeControl "40/5400+30:1800+30"]

1. e4 {[%emt 0:00:00]} c5 {[%emt 0:00:00]} 2. Nf3 {[%emt 0:00:00]} d6 {[%emt 0:00:00]} 3. d4 {[%emt 0:00:00]} cxd4 {[%emt 0:00:00]} 4. Qxd4 {[%emt 0:00:05]} Nc6 {[%emt 0:00:08]} 5. Bb5 {[%emt 0:00:10]} Bd7 {[%emt 0:00:06]} 6. Bxc6 {[%emt 0:00:12]} Bxc6 {[%emt 0:00:06]} 7. Nc3 {[%emt 0:00:16]} Nf6 {[%emt 0:01:12]} 8. Bg5 {[%emt 0:01:22]} e6 {[%emt 0:00:12]} 9. O-O-O {[%emt 0:00:22]} Be7 {[%emt 0:00:09]} 10. Qd3 {[%emt 0:00:20]} O-O {[%emt 0:00:47]} 11. Nd4 {[%emt 0:00:40]} Qa5 {[%emt 0:00:42]} 12. f4 {[%emt 0:00:15]} Rfc8 {[%emt 0:01:27]} 13. f5 {[%emt 0:04:06] LiveBook: 10 Games B53: Sizilianisch (Ungarische Variante)} e5 {[%emt 0:01:32]} (13... Be8 14. Kb1 h6 15. Bh4 b5 16. fxe6 fxe6 17. Rhf1 b4 18. Bxf6 Bxf6 19. Rxf6 gxf6 20. Nxe6 Qe5 {½-½ (51) Ducarmon,Q (2436)-Cruz,C (2499) Montcada 2013}) 14. Nb3 {[%emt 0:00:34]} Qc7 $146 {[%emt 0:06:54]} ({Vorgänger:} 14... Qb6 15. Nd2 Qc7 16. Bxf6 Bxf6 17. Nf3 Be7 18. Rd2 Bf8 19. g4 b5 20. g5 Qa5 {0-1 (34) Takacs,G (2198)-Orso,M (2349) Hungary 2009}) 15. Bxf6 {[%emt 0:00:21]} gxf6 {[%emt 0:00:07]} 16. Kb1 {[%emt 0:00:30]} a5 {[%emt 0:00:46]} 17. Rd2 {[%emt 0:01:33]} (17. a4 $16) 17... a4 {[%emt 0:01:59]} 18. Nc1 {[%emt 0:00:42]} Ra5 {[%emt 0:09:13]} 19. g4 $2 {[%emt 0:07:48]} (19. a3 $18) 19... b5 $2 {[%emt 0:02:14]} (19... a3 $1 $11) 20. h4 {[%emt 0:01:44]} Qb7 {[%emt 0:01:31]} 21. g5 {[%emt 0:11:19]} b4 $1 {[%emt 0:33:19]} 22. Nd5 {[%emt 0:12:27]} Bxd5 $1 {[%emt 0:02:03]} ({Don't go for} 22... fxg5 $2 23. Nxe7+ Qxe7 24. hxg5 $18) 23. exd5 {[%emt 0:00:44]} Rcc5 {[%emt 0:10:46]} 24. Rg1 {[%emt 0:01:20]} fxg5 {[%emt 0:05:47]} 25. f6 $2 {[%emt 0:04:04]} (25. hxg5 $18 {is the precise move to win.} Qxd5 26. Qe3) 25... Bxf6 {[%emt 0:04:08]} 26. Qf5 {[%emt 0:00:18]} Qe7 {[%emt 0:01:55]} 27. hxg5 {[%emt 0:01:18]} Bg7 {[%emt 0:01:20]} 28. Rh2 {[%emt 0:00:30]} (28. Qe4 $1 $14) 28... Rxd5 {[%emt 0:01:03]} 29. Qxh7+ {[%emt 0:04:49]} Kf8 {[%emt 0:00:13]} 30. g6 {[%emt 0:00:09]} f5 {[%emt 0:01:54]} 31. Qh8+ {[%emt 0:01:09]} Bxh8 32. Rxh8+ {[%emt 0:00:06]} Kg7 {[%emt 0:00:22]} 33. Rh7+ {[%emt 0:00:02]} Kf6 {[%emt 0:00:08]} 34. Rxe7 {[%emt 0:00:04]} Kxe7 {[%emt 0:00:06]} 35. g7 {[%emt 0:00:03]} Ra8 {[%emt 0:00:12]} 36. g8=Q {[%emt 0:00:03]} Rxg8 {[%emt 0:00:12]} 37. Rxg8 {[%emt 0:00:04]} f4 {[%emt 0:00:20]} ({Black should play} 37... Rd1 $17 38. c4 bxc3 39. bxc3 f4) 38. Rg1 $1 {[%emt 0:04:26]} f3 {[%emt 0:00:22]} 39. Nd3 {[%emt 0:04:11]} b3 {[%emt 0:06:54]} 40. axb3 {[%emt 0:00:00]} axb3 {[%emt 0:00:00]} 41. Rf1 {[%emt 0:11:16]} e4 {[%emt 0:02:48]} 42. Re1 {[%emt 0:00:59]} bxc2+ {[%emt 0:02:44]} 43. Kxc2 {[%emt 0:00:11]} Rd4 {[%emt 0:00:09]} 44. Nf2 {[%emt 0:02:05]} d5 {[%emt 0:00:06]} 45. b3 {[%emt 0:00:16]} Kd6 {[%emt 0:01:05]} 46. Kc3 {[%emt 0:00:22]} Kc5 {[%emt 0:00:08]} 47. Re3 $2 {[%emt 0:02:29]} (47. Rg1 $18 Rb4 48. Rg5) 47... Rb4 {[%emt 0:01:17]} 48. Nd3+ {[%emt 0:11:25]} exd3 {[%emt 0:00:25]} 49. Rxf3 {[%emt 0:03:30]} d4+ {[%emt 0:00:07]} 50. Kb2 {[%emt 0:00:37]} d2 {[%emt 0:00:54]} 51. Rd3 {[%emt 0:00:27]} Kd5 $11 {[%emt 0:00:27]} 1/2-1/2